bitfinex/quotes_SOLUSD_20260228
["timestamp","ask_amount","ask_price","bid_price","bid_amount"]
[1772276659999,1.929305,79.459,79.43,16.94404141]
[1772276661015,1.929305,79.459,79.44,16.94404141]
[1772276661811,1.929305,79.459,79.43,16.94404141]
[1772276662014,1.929305,79.457,79.43,16.94404141]
[1772276662402,1.929305,79.457,79.425,12.59049417]
[1772276662717,1.929305,79.457,79.43,16.94404141]
[1772276663218,1.929305,79.457,79.44,16.94404141]
[1772276663408,1.929305,79.457,79.43,16.94404141]
[1772276663613,12.58526517,79.458,79.43,16.94404141]
[1772276663614,1.929305,79.455,79.43,16.94404141]
[1772276663802,1.929305,79.455,79.431,12.58954312]
[1772276664213,1.929305,79.455,79.43,16.94404141]
[1772276664620,1.929305,79.449,79.421,12.59100915]
[1772276665117,1.929305,79.449,79.41,16.94404141]
[1772276665316,1.929305,79.439,79.406,12.59350678]
[1772276665717,1.929305,79.437,79.404,3.69383402]
[1772276665905,1.929305,79.437,79.41,16.94404141]
[1772276666105,1.929305,79.437,79.404,3.69383402]
[1772276666312,1.929305,79.437,79.41,16.94404141]
[1772276667814,1.929305,79.437,79.411,12.59271385]
[1772276671005,1.929305,79.437,79.41,16.94404141]
[1772276672921,1.929305,79.437,79.409,12.59303101]
[1772276673124,1.929305,79.437,79.409,44.07560855]
[1772276673318,1.929305,79.437,79.41,16.94404141]
[1772276673526,1.929305,79.437,79.409,44.07560855]
[1772276673713,1.929305,79.437,79.41,16.94404141]
[1772276673913,1.929305,79.429,79.383,1.95505489]
[1772276674125,16.94404141,79.4,79.354,2.04663378]
[1772276674430,16.94404141,79.39,79.35,17.14404141]
[1772276674733,16.94404141,79.4,79.361,2.04663378]
[1772276674921,44.08115971,79.399,79.361,2.04663378]
[1772276675103,16.94404141,79.39,79.361,2.04663378]
[1772276675303,16.94404141,79.39,79.353,2.04663378]
[1772276675304,6.34911382,79.36,79.353,2.04663378]
[1772276675515,16.94404141,79.39,79.353,2.04663378]
[1772276675715,16.94404141,79.39,79.355,2.04663378]
[1772276676219,16.94404141,79.37,79.35,0.2]
[1772276676525,16.94404141,79.39,79.341,2.04663378]
[1772276676725,6.54246811,79.385,79.341,2.04663378]
[1772276676909,44.0922662,79.379,79.341,2.04663378]
[1772276677426,44.11550335,79.379,79.341,2.04663378]
[1772276677729,3.69383402,79.402,79.309,63.04419407]
[1772276677730,12.59604484,79.39,79.351,2.04663378]
[1772276678534,0.02323715,79.389,79.351,2.04663378]
[1772276679528,0.02323715,79.389,79.353,2.04663378]
[1772276681428,0.02323715,79.389,79.342,31.50916286]
[1772276681429,12.59271385,79.411,79.371,2.04663378]
[1772276681730,16.99398773,79.41,79.371,2.04663378]
[1772276682107,0.1598724,79.399,79.371,2.04663378]
[1772276682307,0.1598724,79.407,79.371,2.04663378]
[1772276683506,0.1598724,79.407,79.373,2.04663378]
[1772276683709,16.99398773,79.4,79.373,2.04663378]
[1772276685125,0.1598724,79.407,79.373,2.04663378]
[1772276685564,12.59461706,79.399,79.373,2.04663378]
[1772276685830,12.59461706,79.399,79.375,2.04663378]
[1772276686744,12.5931896,79.408,79.375,2.04663378]
[1772276687713,12.5931896,79.408,79.377,2.04663378]
[1772276688129,16.99398773,79.41,79.377,2.04663378]
[1772276688436,12.59303101,79.409,79.377,2.04663378]
[1772276690230,12.59303101,79.409,79.379,2.04663378]
[1772276691024,44.07560855,79.409,79.379,2.04663378]
[1772276692044,44.56600391,79.409,79.379,2.04663378]
[1772276693731,6.34028247,79.4,79.379,2.04663378]
[1772276696441,12.59461706,79.399,79.379,2.04663378]
[1772276697435,13.22048697,79.408,79.379,2.04663378]
[1772276697626,0.65374157,79.407,79.379,2.04663378]
[1772276699651,0.65374157,79.407,79.342,63.01761241]
[1772276699652,12.59144537,79.419,79.4,6.34028247]
[1772276699834,12.59144537,79.419,79.4,8.38691625]
[1772276700148,12.59001863,79.428,79.401,2.04663378]
[1772276700324,12.58859221,79.437,79.401,2.04663378]
[1772276700530,13.31985785,79.437,79.401,2.04663378]
[1772276700840,0.73126564,79.436,79.401,2.04663378]
[1772276701435,6.34028247,79.44,79.381,2.04663378]
[1772276701436,0.75651566,79.417,79.381,2.04663378]
[1772276701637,44.0706137,79.418,79.373,2.04663378]
[1772276701638,0.75651566,79.409,79.373,2.04663378]
[1772276702536,0.75651566,79.416,79.381,2.04663378]
[1772276702731,7.12175813,79.41,79.381,2.04663378]
[1772276702918,0.78147566,79.41,79.381,2.04663378]
[1772276703624,13.39917997,79.409,79.381,2.04663378]
[1772276704138,0.80614896,79.408,79.381,2.04663378]
[1772276705119,0.80614896,79.408,79.37,6.34028247]
[1772276705318,0.80614896,79.408,79.371,2.04663378]
[1772276705539,0.85464864,79.406,79.354,2.04663378]
[1772276705732,0.85464864,79.406,79.36,6.34028247]
[1772276705935,44.07671867,79.407,79.354,2.04663378]
[1772276705936,0.85464864,79.399,79.354,2.04663378]
[1772276706545,0.85464864,79.399,79.36,6.34028247]
[1772276706746,107.04345963,79.407,79.314,2.04663378]
[1772276706747,6.34028247,79.38,79.314,2.04663378]
[1772276706946,6.34028247,79.4,79.295,2.04663378]
[1772276706947,0.87848148,79.349,79.295,2.04663378]
[1772276707145,0.87848148,79.349,79.31,6.34028247]
[1772276707350,0.87848148,79.349,79.311,2.04663378]
[1772276707534,6.34028247,79.35,79.311,2.04663378]
[1772276707535,0.90204058,79.347,79.311,2.04663378]
[1772276708132,0.90204058,79.356,79.33,6.34028247]
[1772276708333,0.90204058,79.356,79.321,2.04663378]
[1772276708529,0.90204058,79.356,79.29,0.2]
[1772276708750,0.92532908,79.319,79.28,0.2]
[1772276708950,0.72532908,79.309,79.271,2.04663378]
[1772276709330,0.72532908,79.319,79.281,2.14663378]
[1772276709546,44.12617564,79.318,79.281,2.14663378]
[1772276709855,1.97805073,79.299,79.26,17.02531153]
[1772276710941,1.97805073,79.299,79.25,17.02531153]
[1772276711147,1.97805073,79.299,79.27,17.02531153]
[1772276711648,12.61065852,79.298,79.27,17.02531153]
[1772276712324,2.37067704,79.297,79.27,17.02531153]
[1772276712530,2.37067704,79.297,79.269,2.49548901]
[1772276713651,2.37067704,79.295,79.258,2.49548901]
[1772276714147,2.37067704,79.295,79.261,2.49548901]
[1772276715154,2.37067704,79.289,79.255,2.49548901]
[1772276715461,2.37067704,79.307,79.271,2.49548901]
[1772276715955,12.60938642,79.306,79.273,2.49548901]
[1772276717449,2.37067704,79.315,79.281,2.49548901]
[1772276717750,12.60890945,79.309,79.281,2.49548901]
[1772276717942,19.39598857,79.3,79.27,2.49548901]
[1772276718943,2.37067704,79.3,79.271,2.49548901]
[1772276719244,12.60934795,79.307,79.273,2.49548901]
[1772276719957,2.37067704,79.306,79.273,2.49548901]
[1772276720157,12.60954542,79.305,79.273,2.49548901]
[1772276720358,17.02531153,79.3,79.273,2.49548901]
[1772276720742,17.02531153,79.3,79.275,2.49548901]
[1772276721058,12.60954542,79.305,79.275,2.49548901]
[1772276721556,29.634128,79.31,79.275,2.49548901]
[1772276721741,32.00480504,79.31,79.275,2.49548901]
[1772276721943,2.37067704,79.309,79.275,2.49548901]
[1772276722771,2.37067704,79.307,79.275,2.49548901]
[1772276723548,17.02531153,79.3,79.275,2.49548901]
[1772276724265,2.37067704,79.307,79.276,2.49548901]
[1772276724468,44.13173954,79.308,79.255,2.49548901]
[1772276724469,2.37067704,79.289,79.255,2.49548901]
[1772276724839,2.37067704,79.279,79.255,2.49548901]
[1772276725044,2.37067704,79.279,79.25,0.2]
[1772276725045,17.02531153,79.27,79.25,2.69548901]
[1772276725353,17.02531153,79.28,79.25,2.69548901]
[1772276725742,2.37067704,79.279,79.25,2.69548901]
[1772276727066,12.6138399,79.278,79.25,2.69548901]
[1772276727561,12.61294788,79.284,79.252,2.49548901]
[1772276727786,17.02531153,79.27,79.252,2.49548901]
[1772276728081,2.37067704,79.279,79.252,2.49548901]
[1772276728572,2.37067704,79.3,79.26,17.02531153]
[1772276728778,19.39598857,79.3,79.261,2.49548901]
[1772276729345,12.6104995,79.299,79.261,12.61640181]
[1772276729567,12.6104995,79.299,79.262,2.49548901]
[1772276729951,19.39598857,79.31,79.271,2.49548901]
[1772276730174,2.37067704,79.309,79.271,2.49548901]
[1772276731461,14.97958649,79.309,79.273,2.49548901]
[1772276732266,2.37067704,79.308,79.273,2.49548901]
[1772276732966,17.02531153,79.31,79.281,2.49548901]
[1772276733369,12.60811458,79.314,79.281,2.49548901]
[1772276733576,17.02531153,79.31,79.281,2.49548901]
[1772276734273,2.37067704,79.309,79.281,2.49548901]
[1772276735470,2.37067704,79.289,79.257,2.49548901]
[1772276735675,2.37067704,79.289,79.25,17.22531153]
[1772276735676,2.37067704,79.289,79.259,2.49548901]
[1772276735972,2.37067704,79.289,79.261,2.49548901]
[1772276736372,2.37067704,79.296,79.261,2.49548901]
[1772276736573,17.02531153,79.3,79.261,2.49548901]
[1772276736756,17.02531153,79.3,79.258,12.61702288]
[1772276736757,12.60906844,79.308,79.281,2.49548901]
[1772276736957,2.37067704,79.307,79.281,2.49548901]
[1772276737776,12.60938642,79.306,79.281,2.49548901]
[1772276738272,12.60938642,79.306,79.276,12.08860657]
[1772276738874,14.98006346,79.306,79.271,12.61495376]
[1772276739860,2.37067704,79.305,79.271,12.61495376]
[1772276740073,2.37067704,79.305,79.272,2.49548901]
[1772276740774,2.72022857,79.303,79.272,2.49548901]
[1772276742675,2.72022857,79.303,79.274,2.76749053]
[1772276743080,0.75999999,79.315,79.29,6.35586387]
[1772276743081,12.60827354,79.313,79.29,6.35586387]
[1772276743268,12.60827354,79.313,79.272,2.76749053]
[1772276743473,44.12895741,79.313,79.272,2.76749053]
[1772276743671,2.62543944,79.312,79.272,2.76749053]
[1772276744057,2.62543944,79.309,79.27,6.35586387]
[1772276745180,2.62543944,79.307,79.27,6.35586387]
[1772276746276,2.62543944,79.307,79.271,12.61495376]
[1772276747274,2.62543944,79.305,79.27,9.1233544]
[1772276747475,2.62543944,79.305,79.27,2.76749053]
[1772276748284,44.13285248,79.306,79.25,0.2]
[1772276748285,2.62543944,79.299,79.254,2.76749053]
[1772276748470,2.62543944,79.289,79.254,2.76749053]
[1772276749287,2.62543944,79.287,79.254,2.76749053]
[1772276750188,2.62543944,79.287,79.261,2.76749053]
[1772276750362,12.61224901,79.288,79.261,2.76749053]
[1772276750568,63.04693213,79.306,79.254,12.61752898]
[1772276750569,2.62543944,79.301,79.271,2.76749053]
[1772276751488,12.61052308,79.299,79.272,2.76749053]
[1772276752269,2.62543944,79.298,79.261,2.76749053]
[1772276753279,2.62543944,79.298,79.271,2.76749053]
[1772276753673,15.23625699,79.297,79.271,2.76749053]
[1772276753894,2.62543944,79.296,79.271,2.76749053]
[1772276754496,12.61081755,79.297,79.271,2.76749053]
[1772276755482,12.61081755,79.297,79.273,2.76749053]
[1772276756070,2.62543944,79.296,79.273,2.76749053]
[1772276758390,12.61113563,79.295,79.273,2.76749053]
[1772276758891,2.62543944,79.294,79.273,2.76749053]
[1772276760512,15.23689316,79.293,79.273,2.76749053]
[1772276761283,2.62543944,79.293,79.275,2.76749053]
[1772276761998,2.62543944,79.319,79.281,2.76749053]
[1772276762183,2.62543944,79.309,79.281,2.76749053]
[1772276762380,2.62543944,79.307,79.281,2.76749053]
[1772276762600,2.62543944,79.289,79.259,2.76749053]
[1772276763295,2.62543944,79.289,79.261,2.76749053]
[1772276764501,12.61224901,79.288,79.261,2.76749053]
[1772276764698,6.35586387,79.3,79.262,2.76749053]
[1772276764883,2.62543944,79.3,79.271,2.76749053]
[1772276765194,8.98130331,79.3,79.271,2.76749053]
[1772276765394,2.62543944,79.299,79.271,2.76749053]
[1772276765904,2.62543944,79.305,79.273,2.76749053]
[1772276766083,12.60906971,79.308,79.281,2.76749053]
[1772276766482,2.62543944,79.32,79.291,2.76749053]
[1772276766681,12.60636621,79.325,79.291,2.76749053]
[1772276766876,12.60636621,79.325,79.301,2.76749053]
[1772276767088,15.23180565,79.325,79.301,2.76749053]
[1772276768804,12.60636621,79.325,79.301,2.76749053]
[1772276769013,12.60563026,79.33,79.302,2.76749053]
[1772276770010,15.2310697,79.33,79.302,2.76749053]
[1772276770182,2.62543944,79.319,79.286,2.76749053]
[1772276772209,2.74830483,79.317,79.286,2.76749053]
[1772276772517,17.01634023,79.3,79.279,2.94768297]
[1772276773290,2.74830483,79.301,79.279,2.94768297]
[1772276774024,2.74830483,79.309,79.281,2.94768297]
[1772276774394,17.01634023,79.32,79.281,12.61325559]
[1772276774590,102.3,79.334,79.281,12.61325559]
[1772276774591,2.74830483,79.329,79.301,2.94768297]
[1772276775629,15.35403539,79.329,79.301,2.94768297]
[1772276775811,2.74830483,79.328,79.301,2.94768297]
[1772276778107,2.74830483,79.326,79.301,2.94768297]
[1772276778908,12.35770368,79.327,79.302,2.94768297]
[1772276779209,102.3,79.355,79.321,2.94768297]
[1772276779210,12.60467969,79.336,79.321,2.94768297]
[1772276779418,2.74830483,79.335,79.3,19.9640232]
[1772276779589,2.74830483,79.335,79.301,2.94768297]
[1772276779796,17.01634023,79.33,79.301,2.94768297]
[1772276780106,2.74830483,79.327,79.294,2.94768297]
[1772276780695,2.74830483,79.327,79.3,17.01634023]
[1772276780906,2.74830483,79.327,79.301,2.94768297]
[1772276781210,12.60588947,79.328,79.301,2.94768297]
[1772276782307,2.74830483,79.333,79.301,2.94768297]
[1772276782818,2.74830483,79.333,79.303,2.94768297]
[1772276784990,2.74830483,79.333,79.264,3.69383402]
[1772276784991,2.74830483,79.344,79.311,2.94768297]
[1772276785191,2.74830483,79.339,79.304,2.94768297]
[1772276785810,17.01634023,79.33,79.304,2.94768297]
[1772276785998,2.74830483,79.329,79.292,2.94768297]
[1772276786701,2.74830483,79.329,79.301,2.94768297]
[1772276787598,8.24202905,79.377,79.32,17.01634023]
[1772276787796,0.1,79.38,79.37,17.01634023]
[1772276788010,12.59471393,79.399,79.37,17.01634023]
[1772276788213,3.07152005,79.407,79.347,15.10108308]
[1772276788214,12.59444112,79.401,79.38,8.5e-07]
[1772276788415,0.1,79.41,79.38,8.5e-07]
[1772276788596,3.07152005,79.409,79.39,17.01634023]
[1772276788801,3.07152005,79.409,79.38,17.01634023]
[1772276789206,3.07152005,79.409,79.38,6.33780858]
[1772276789398,3.07152005,79.409,79.39,6.33780858]
[1772276791312,3.07152005,79.409,79.39,16.97326384]
[1772276793821,0.1,79.41,79.4,16.97326384]
[1772276793822,0.01538518,79.41,79.4,16.97326384]
[1772276794020,3.12921264,79.41,79.4,16.97326384]
[1772276794416,0.01538518,79.41,79.4,16.97326384]
[1772276794815,0.01538518,79.41,79.39,16.97326384]
[1772276795628,0.01538518,79.41,79.38,16.97326384]
[1772276795919,0.01538518,79.41,79.39,16.97326384]
[1772276796107,0.01538518,79.41,79.4,16.97326384]
[1772276801318,0.01538518,79.41,79.4,16.9701496]
[1772276806720,0.01538518,79.41,79.391,0.34506285]
[1772276806721,0.01538518,79.41,79.391,3.08634042]
[1772276807720,0.01538518,79.41,79.4,16.9701496]
[1772276807937,0.01538518,79.41,79.391,3.08634042]
[1772276808124,0.01538518,79.41,79.39,16.9701496]
[1772276809136,0.01538518,79.41,79.391,3.08634042]
[1772276812917,0.01538518,79.41,79.39,16.9701496]
[1772276813236,0.01538518,79.41,79.38,6.3375933]
[1772276813742,0.01538518,79.41,79.39,6.3375933]
[1772276814921,0.01538518,79.41,79.37,3.08634042]
[1772276815230,0.01538518,79.41,79.378,3.08634042]
[1772276815425,0.01538518,79.41,79.39,6.3375933]
[1772276817943,0.01538518,79.41,79.391,3.08634042]
[1772276821542,3.17993015,79.41,79.391,3.08634042]
[1772276822052,3.16454497,79.409,79.366,3.08634042]
[1772276822233,3.16454497,79.399,79.37,6.3375933]
[1772276823327,3.16454497,79.389,79.36,6.3375933]
[1772276823531,12.59541023,79.394,79.371,3.08634042]
[1772276823749,15.7599552,79.394,79.371,3.08634042]
[1772276823928,3.16454497,79.393,79.371,3.08634042]
[1772276825349,3.16454497,79.393,79.37,6.3375933]
[1772276825739,3.16454497,79.391,79.37,6.3375933]
[1772276826457,3.16454497,79.391,79.365,3.08634042]
[1772276826659,3.16454497,79.389,79.36,6.3375933]
[1772276827358,3.16454497,79.379,79.35,9.42393372]
[1772276827655,3.16454497,79.379,79.35,6.3375933]
[1772276827953,6.3375933,79.38,79.35,6.3375933]
[1772276827954,3.16454497,79.377,79.35,6.3375933]
[1772276828739,3.16454497,79.377,79.351,3.08634042]
[1772276830059,3.16454497,79.387,79.361,3.08634042]
[1772276830451,16.23366934,79.384,79.361,3.08634042]
[1772276831345,3.63659608,79.383,79.361,3.08634042]
[1772276833153,12.59731425,79.382,79.361,3.08634042]
[1772276834582,3.63659608,79.404,79.371,3.4164188]
[1772276835454,12.59398259,79.403,79.371,3.4164188]
[1772276836664,47.71553515,79.403,79.371,3.4164188]
[1772276836865,3.63659608,79.399,79.371,3.4164188]
[1772276837668,12.59477568,79.398,79.371,3.4164188]
[1772276837963,16.23137176,79.398,79.371,3.4164188]
[1772276838164,3.63659608,79.397,79.371,3.4164188]
[1772276838752,3.63659608,79.395,79.365,3.4164188]
[1772276839270,3.63659608,79.389,79.365,3.4164188]
[1772276839575,3.63659608,79.389,79.359,3.4164188]
[1772276840668,3.63659608,79.387,79.359,3.4164188]
[1772276843273,3.63659608,79.385,79.359,3.4164188]
[1772276843774,3.63659608,79.385,79.355,12.60149871]
[1772276844066,3.63659608,79.385,79.353,3.4164188]
[1772276845076,3.63659608,79.385,79.334,3.69383402]
[1772276845077,3.63659608,79.359,79.323,3.4164188]
[1772276845375,3.63659608,79.357,79.324,3.4164188]
[1772276846870,6.3375933,79.35,79.324,3.4164188]
[1772276847170,3.63659608,79.347,79.32,0.2]
[1772276847470,3.63659608,79.347,79.322,31.82586317]
[1772276847652,3.63659608,79.347,79.323,3.4164188]
[1772276848066,3.63659608,79.347,79.322,28.40944437]
[1772276848247,3.63659608,79.339,79.322,28.40944437]
[1772276848454,6.3375933,79.33,79.31,0.2]
[1772276848670,3.63659608,79.329,79.29,6.3375933]
[1772276849072,3.63659608,79.329,79.3,6.3375933]
[1772276849254,6.3375933,79.33,79.3,6.3375933]
[1772276849255,16.24248555,79.328,79.3,6.3375933]
[1772276850250,12.60588947,79.328,79.301,12.61018146]
[1772276850456,12.60414172,79.339,79.31,6.3375933]
[1772276850694,12.60414172,79.339,79.311,2.58316885]
[1772276854978,3.63659608,79.339,79.311,2.58316885]
[1772276858166,3.63659608,79.337,79.313,2.69697367]
[1772276858664,3.63659608,79.337,79.32,6.3375933]
[1772276859862,3.63659608,79.337,79.318,2.71353371]
[1772276861278,12.60461833,79.336,79.318,2.71353371]
[1772276861968,12.60461833,79.336,79.284,3.69383402]
[1772276861969,3.90002586,79.364,79.321,2.77789349]
[1772276862172,3.90002586,79.382,79.351,2.77789349]
[1772276862368,3.90002586,79.382,79.36,9.14279177]
[1772276862574,12.5962035,79.389,79.32,6.34926769]
[1772276862575,12.5962035,79.389,79.37,9.15824283]
[1772276863164,12.59525159,79.395,79.37,9.15824283]
[1772276864577,12.59525159,79.395,79.371,2.83934688]
[1772276865562,3.84561607,79.402,79.38,6.34926769]
[1772276865762,3.84561607,79.402,79.381,2.85427162]
[1772276867470,12.59429981,79.401,79.381,2.85427162]
[1772276867665,16.43991588,79.401,79.381,2.85427162]
[1772276868074,3.84561607,79.4,79.375,2.88360879]
[1772276868386,3.84561607,79.4,79.37,2.88360879]
[1772276868678,3.84561607,79.4,79.37,6.34926769]
[1772276869586,3.84561607,79.398,79.37,9.26154359]
[1772276869789,3.84561607,79.398,79.38,6.34926769]
[1772276870166,3.84561607,79.398,79.372,2.9122759]
[1772276871771,3.84561607,79.396,79.372,2.9122759]
[1772276872172,3.84561607,79.396,79.37,6.34926769]
[1772276873220,3.84561607,79.396,79.345,12.60316475]
[1772276873492,3.84561607,79.396,79.32,6.34926769]
[1772276873493,3.84561607,79.369,79.34,9.30332127]
[1772276873792,3.84561607,79.367,79.341,2.9676608]
[1772276874399,3.84561607,79.367,79.35,6.34926769]
[1772276874596,3.84561607,79.367,79.343,2.9676608]
[1772276875491,12.59953633,79.368,79.343,2.9676608]
[1772276875884,16.4451524,79.368,79.343,2.9676608]
[1772276876696,3.84561607,79.367,79.343,2.9676608]
[1772276877193,3.84561607,79.367,79.331,3.00755187]
[1772276877378,3.84561607,79.367,79.332,3.00755187]
[1772276878181,3.84561607,79.367,79.34,6.34926769]
[1772276878586,3.84561607,79.367,79.332,3.00755187]
[1772276878788,3.84561607,79.365,79.334,3.03338812]
[1772276879382,3.84561607,79.365,79.34,6.34926769]
[1772276879675,3.84561607,79.365,79.341,3.0460841]
[1772276880083,12.60017136,79.364,79.341,3.0460841]
[1772276880980,3.84561607,79.363,79.341,3.0460841]
[1772276882174,12.60048889,79.362,79.341,3.0460841]
[1772276882893,3.84561607,79.361,79.335,3.08330379]
[1772276883094,3.84561607,79.361,79.34,9.43257148]
[1772276883898,3.84561607,79.361,79.331,3.09542644]
[1772276884775,16.44642252,79.36,79.333,3.10740985]
[1772276885399,3.84561607,79.359,79.333,3.10740985]
[1772276886890,3.84561607,79.359,79.335,3.13096534]
[1772276887096,3.84561607,79.359,79.34,6.34926769]
[1772276888002,12.60080645,79.36,79.34,6.34926769]
[1772276888003,12.60010461,79.365,79.341,3.14254056]
[1772276888785,16.44572068,79.365,79.341,3.14254056]
[1772276891302,4.02687537,79.364,79.341,3.14254056]
[1772276894098,4.02687537,79.364,79.343,3.21992869]
[1772276894487,12.60033012,79.363,79.343,3.21992869]
[1772276894687,4.02687537,79.362,79.343,3.21992869]
[1772276894888,4.02687537,79.362,79.34,9.57974977]
[1772276895094,4.02687537,79.362,79.341,3.23048208]
[1772276895887,4.02687537,79.366,79.35,6.34926769]
[1772276896088,4.02687537,79.364,79.346,3.24091424]
[1772276896889,4.02687537,79.364,79.341,3.25122659]
[1772276898404,4.02687537,79.362,79.341,3.25122659]
[1772276898706,4.02687537,79.362,79.341,3.2714973]
[1772276899009,4.02687537,79.366,79.35,6.34926769]
[1772276899208,4.02687537,79.366,79.345,3.2714973]
[1772276899909,4.02687537,79.366,79.341,3.28145837]
[1772276900711,62.97467158,79.397,79.323,31.51632488]
[1772276900712,4.02687537,79.359,79.323,3.29130502]
[1772276901091,4.02687537,79.359,79.33,6.34926769]
[1772276901793,4.02687537,79.357,79.33,6.34926769]
[1772276902504,4.02687537,79.357,79.32,6.34926769]
[1772276902806,4.02687537,79.357,79.321,3.31066034]
[1772276903402,4.02687537,79.357,79.331,3.31066034]
[1772276903715,4.02687537,79.357,79.331,2.81066034]
[1772276904616,4.02687537,79.357,79.34,6.34926769]
[1772276905112,12.6014416,79.356,79.34,6.34926769]
[1772276905308,12.6014416,79.356,79.332,12.60525386]
[1772276905694,16.62831697,79.356,79.333,2.83886758]
[1772276906519,12.6014416,79.356,79.333,2.83886758]
[1772276906810,16.62831697,79.356,79.333,2.83886758]
[1772276907513,4.02687537,79.355,79.333,2.83886758]
[1772276909313,4.02687537,79.359,79.34,6.34926769]
[1772276909514,4.02687537,79.359,79.341,2.86611398]
[1772276910729,16.62799939,79.358,79.341,2.86611398]
[1772276910897,4.02687537,79.357,79.335,2.88421812]
[1772276915203,4.02687537,79.355,79.335,2.88421812]
[1772276917598,12.6017592,79.354,79.335,2.88421812]
[1772276917916,4.02687537,79.353,79.335,2.88421812]
[1772276919899,16.62895219,79.352,79.335,2.88421812]
[1772276920095,4.02687537,79.351,79.335,2.88421812]
[1772276920722,4.02687537,79.351,79.331,2.97664779]
[1772276922819,12.60239445,79.35,79.331,2.97664779]
[1772276923316,16.86728496,79.35,79.331,2.97664779]
[1772276923509,12.60239445,79.35,79.331,2.97664779]
[1772276925905,4.26489051,79.35,79.331,2.97664779]
[1772276928711,12.60255327,79.349,79.331,2.97664779]
[1772276929325,4.26489051,79.35,79.331,2.97664779]
[1772276929507,16.86659059,79.355,79.333,3.04400639]
[1772276929705,4.26489051,79.354,79.333,3.04400639]
[1772276930611,12.60191801,79.353,79.333,3.04400639]
[1772276930810,4.26489051,79.352,79.333,3.04400639]
[1772276931909,4.26489051,79.352,79.33,9.41106158]
[1772276932727,4.26489051,79.35,79.331,3.07176782]
[1772276941737,4.26489051,79.35,79.308,3.69383402]
[1772276941916,4.26489051,79.35,79.252,102.3]
[1772276941917,4.4010854,79.339,79.3,6.34611432]
[1772276942123,4.4010854,79.339,79.31,6.34611432]
[1772276942435,4.4010854,79.339,79.292,3.69383402]
[1772276942638,4.4010854,79.339,79.31,6.34611432]
[1772276943339,4.4010854,79.339,79.292,3.69383402]
[1772276943340,4.4010854,79.339,79.32,6.34611432]
[1772276943533,4.4010854,79.338,79.31,6.34611432]
[1772276944425,4.4010854,79.338,79.32,6.34611432]
[1772276945137,4.4010854,79.338,79.297,0.07598624]
[1772276945342,4.4010854,79.338,79.312,0.07598624]
[1772276945733,4.4010854,79.336,79.312,0.07598624]
[1772276948141,4.4010854,79.334,79.31,6.34611432]
[1772276949036,12.60509497,79.333,79.31,6.34611432]
[1772276949343,4.4010854,79.332,79.31,18.95475613]
[1772276949539,4.4010854,79.337,79.32,6.34611432]
[1772276949742,4.4010854,79.337,79.32,6.43424846]
[1772276949942,4.4010854,79.337,79.33,6.34611432]
[1772276950245,4.4010854,79.337,79.321,0.08813414]
[1772276951038,4.4010854,79.337,79.32,6.34611432]
[1772276951532,37.84838254,79.36,79.31,6.34611432]
[1772276951533,4.4010854,79.335,79.31,6.34611432]
[1772276952638,4.4010854,79.335,79.301,0.08859435]
[1772276953342,4.4010854,79.333,79.31,6.34611432]
[1772276955648,4.4010854,79.333,79.311,12.60859149]
[1772276957251,4.4010854,79.333,79.244,63.48112564]
[1772276957252,4.22995694,79.319,79.28,0.2]
[1772276957450,4.22995694,79.309,79.28,0.2]
[1772276957649,4.22995694,79.307,79.28,0.2]
[1772276957841,4.22995694,79.299,79.28,0.2]
[1772276959657,4.22995694,79.299,79.264,12.61599764]
[1772276959658,4.22995694,79.299,79.264,4.1654256]
[1772276960045,4.22995694,79.289,79.264,4.1654256]
[1772276960250,4.22995694,79.304,79.281,4.1654256]
[1772276962653,6.34611432,79.31,79.283,4.1654256]
[1772276962654,4.22995694,79.31,79.283,4.1654256]
[1772276962951,4.22995694,79.315,79.291,4.1654256]
[1772276963661,4.22995694,79.299,79.261,4.1654256]
[1772276964359,6.34611432,79.29,79.261,4.1654256]
[1772276964539,4.22995694,79.292,79.261,4.1654256]
[1772276964738,4.22995694,79.29,79.263,4.1654256]
[1772276965456,4.22995694,79.299,79.271,4.1654256]
[1772276965955,4.22995694,79.299,79.262,12.61638616]
[1772276966156,4.22995694,79.289,79.252,4.1654256]
[1772276967159,4.22995694,79.279,79.252,4.1654256]
[1772276967538,4.22995694,79.279,79.25,4.3654256]
[1772276967849,4.22995694,79.279,79.25,16.98361559]
[1772276968050,4.22995694,79.279,79.251,4.1654256]
[1772276968859,4.22995694,79.277,79.251,4.1654256]
[1772276969253,1.19954011,79.308,79.25,12.81818999]
[1772276969254,4.22995694,79.305,79.271,4.1654256]
[1772276973160,4.22995694,79.303,79.271,4.1654256]
[1772276974347,4.22995694,79.299,79.271,4.1654256]
[1772276975263,4.22995694,79.297,79.271,4.1654256]
[1772276975842,4.22995694,79.297,79.272,4.1654256]
[1772276977756,4.22995694,79.295,79.272,4.1654256]
[1772276978447,1.19954011,79.307,79.274,4.1654256]
[1772276978639,1.19954011,79.307,79.28,10.51153992]
[1772276978640,4.22995694,79.301,79.28,10.51153992]
[1772276978839,4.22995694,79.301,79.28,4.1654256]
[1772276979059,4.22995694,79.301,79.275,4.1654256]
[1772276982571,44.13285248,79.306,79.275,4.1654256]